bitfinex-derivatives/quotes_BTCF0:USTF0_20251204
["timestamp","ask_amount","ask_price","bid_price","bid_amount"]
[1764878722382,0.01016316,91983.0,91982.0,0.0666686]
[1764878724091,0.0108686,91982.0,91980.0,0.01786]
[1764878724293,0.0108695,91974.0,91972.0,0.51268]
[1764878724495,0.0108702,91969.0,91962.0,0.0108709]
[1764878724696,0.00242002,91967.0,91966.0,0.40671]
[1764878725194,0.00242002,91967.0,91966.0,0.43446]
[1764878725493,0.00242002,91967.0,91966.0,0.07366]
[1764878725888,0.3688,91974.0,91973.0,0.0558]
[1764878726089,0.3608,91974.0,91973.0,0.05660664]
[1764878726401,0.3608,91974.0,91966.0,0.01786]
[1764878726402,0.0108704,91967.0,91966.0,0.01786]
[1764878726589,0.00342002,91967.0,91966.0,0.07366]
[1764878726899,0.001,91967.0,91966.0,0.07366]
[1764878727101,0.00342002,91967.0,91966.0,0.07366]
[1764878727395,0.001,91967.0,91966.0,0.07366]
[1764878727700,0.00342002,91967.0,91966.0,0.07366]
[1764878728691,0.001,91967.0,91966.0,0.07366]
[1764878729092,0.007,91967.0,91966.0,0.07366]
[1764878730998,0.0108705,91966.0,91963.0,0.3608]
[1764878731201,0.007,91967.0,91926.0,0.00027196]
[1764878731202,0.010872,91953.0,91952.0,0.01786]
[1764878731406,0.371672,91953.0,91952.0,0.01786]
[1764878731905,0.371672,91953.0,91952.0,0.07366]
[1764878732398,0.371672,91953.0,91952.0,0.0845321]
[1764878732597,0.00016316,91962.0,91961.0,0.0666711]
[1764878732797,0.00258318,91962.0,91961.0,0.05660664]
[1764878733196,0.00258318,91962.0,91961.0,0.0558]
[1764878733595,0.00258318,91962.0,91940.0,0.2893417]
[1764878733596,0.0108737,91939.0,91934.0,0.0108742]
[1764878733793,0.0108745,91932.0,91931.0,0.0108746]
[1764878734095,0.0108745,91932.0,91931.0,0.0891046]
[1764878734599,0.0108744,91933.0,91932.0,0.04923]
[1764878734904,0.3608,91935.0,91934.0,0.07823]
[1764878735198,0.3608,91935.0,91934.0,0.07903664]
[1764878736000,0.0821346,91931.0,91930.0,0.0108747]
[1764878736208,0.03076002,91927.0,91926.0,0.02927196]
[1764878736405,0.0821351,91927.0,91926.0,0.00027196]
[1764878738607,0.0831351,91927.0,91926.0,0.0010786]
[1764878738808,0.0831351,91927.0,91926.0,0.00027196]
[1764878739111,0.0108763,91917.0,91910.0,0.01786]
[1764878739304,0.0118751,91927.0,91910.0,0.01786]
[1764878739305,0.001,91927.0,91926.0,0.07823]
[1764878739905,0.00342002,91927.0,91926.0,0.07823]
[1764878740102,0.001,91927.0,91926.0,0.07823]
[1764878740493,0.00342002,91927.0,91926.0,0.07823]
[1764878740695,0.010877,91913.0,91912.0,0.0108768]
[1764878741002,0.3608,91921.0,91920.0,0.0891059]
[1764878741601,0.35923645,91921.0,91920.0,0.0891059]
[1764878741904,0.3608,91952.0,91951.0,0.0891022]
[1764878742207,0.36322002,91952.0,91951.0,0.0891022]
[1764878742408,0.3608,91952.0,91951.0,0.0891022]
[1764878742804,0.3608,91952.0,91951.0,0.07823]
[1764878743919,0.3608,91952.0,91951.0,0.09438]
[1764878744209,0.3628,91952.0,91951.0,0.1052522]
[1764878746704,0.002,91952.0,91951.0,0.1052522]
[1764878747507,0.00016316,91961.0,91960.0,0.09438]
[1764878747811,0.00016316,91961.0,91960.0,0.45598664]
[1764878748598,0.00116316,91961.0,91960.0,0.45598664]
[1764878748803,0.00616316,91961.0,91960.0,0.45598664]
[1764878751911,0.00616316,91961.0,91960.0,0.09518664]
[1764878752115,0.00616316,91961.0,91960.0,0.04778664]
[1764878752116,0.08810316,91961.0,91960.0,0.04778664]
[1764878752318,0.08194,91956.0,91955.0,0.0578518]
[1764878752511,0.08436002,91956.0,91955.0,0.0578518]
[1764878752919,0.00616316,91961.0,91960.0,0.1052512]
[1764878753212,0.00616316,91961.0,91960.0,0.09518664]
[1764878753405,0.00116316,91961.0,91960.0,0.09518664]
[1764878753605,0.00016316,91961.0,91960.0,0.10605784]
[1764878753820,0.00258318,91961.0,91960.0,0.10605784]
[1764878754110,0.00658318,91961.0,91960.0,0.10605784]
[1764878754519,0.00758318,91961.0,91960.0,0.10605784]
[1764878755015,0.00516316,91961.0,91960.0,0.10605784]
[1764878755213,0.00516316,91961.0,91960.0,0.46685784]
[1764878757204,0.3608,91978.0,91977.0,0.09438]
[1764878757617,0.3608,91978.0,91977.0,0.1052492]
[1764878758017,0.45347,91978.0,91977.0,0.0108692]
[1764878758618,0.45347,91978.0,91977.0,0.0578492]
[1764878759406,0.3698,91978.0,91977.0,0.1052492]
[1764878759810,0.009,91978.0,91977.0,0.1052492]
[1764878760923,0.00016316,91987.0,91986.0,0.1052481]
[1764878761226,0.00016316,91987.0,91986.0,0.10605474]
[1764878762034,0.09525318,91987.0,91986.0,0.01167474]
[1764878762332,0.09525318,91987.0,91986.0,0.1052481]
[1764878762530,0.04643316,91987.0,91986.0,0.1092481]
[1764878762730,0.40707,92024.0,92023.0,0.0578437]
[1764878762932,0.3608,92024.0,92023.0,0.1052437]
[1764878763128,0.08851445,92034.0,92033.0,0.1052426]
[1764878763326,0.01086,92055.0,92045.0,0.1052411]
[1764878763525,0.0108596,92059.0,92045.0,0.1052411]
[1764878763727,0.00016297,92055.0,92045.0,0.1052411]
[1764878765742,0.0012716,92046.0,92045.0,0.1052411]
[1764878766326,0.4014616,92046.0,92045.0,0.09438]
[1764878766532,0.03939,92041.0,92040.0,0.0266]
[1764878766740,0.04181002,92041.0,92040.0,0.58745]
[1764878767036,0.3620716,92046.0,92045.0,0.1040611]
[1764878767245,0.3620716,92046.0,92045.0,0.10486774]
[1764878767740,0.0012716,92046.0,92045.0,0.10486774]
[1764878769030,0.00016297,92055.0,92054.0,0.0932]
[1764878769230,0.00016297,92055.0,92054.0,0.09400664]
[1764878769437,0.00258299,92055.0,92054.0,0.09400664]
[1764878769639,0.40277299,92055.0,92054.0,0.09400664]
[1764878770440,0.07878,92051.0,92050.0,0.02775]
[1764878770638,0.08120002,92051.0,92050.0,0.02775]
[1764878771036,0.07878,92041.0,92040.0,0.0266]
[1764878771242,0.07878,92041.0,92040.0,0.58713]
[1764878771535,0.07878,92041.0,92040.0,0.63152]
[1764878771734,0.07878,92041.0,92040.0,0.1198]
[1764878772339,0.03939,92041.0,92040.0,0.1198]
[1764878772642,0.03939,92041.0,92040.0,0.1208]
[1764878773538,0.07878,92041.0,92040.0,0.001]
[1764878773738,0.07878,92041.0,92040.0,0.13361834]
[1764878773935,0.07878,92041.0,92040.0,0.12275664]
[1764878775340,0.43958,92042.0,92041.0,0.0596716]
[1764878775550,0.43958,92042.0,92041.0,0.06047824]
[1764878776255,0.0896449,92013.0,91992.0,0.02775]
[1764878776540,0.0896449,92013.0,92012.0,0.04971412]
[1764878776844,0.0896449,92013.0,92012.0,0.09410412]
[1764878776845,0.07878,92013.0,92012.0,0.09410412]
[1764878777144,0.43958,92013.0,92012.0,0.09410412]
[1764878778143,0.07878,92013.0,92012.0,0.09329748]
[1764878778344,0.00016297,92022.0,92021.0,0.0932]
[1764878778647,0.07878,92013.0,92012.0,0.00109748]
[1764878778957,0.44200002,92013.0,92012.0,0.00209748]
[1764878779253,0.44200002,92013.0,92012.0,0.01296248]
[1764878779554,0.44200002,92013.0,92012.0,0.05977248]
[1764878779741,0.44200002,92013.0,92012.0,9.748e-05]
[1764878779939,0.44300002,92013.0,92012.0,9.748e-05]
[1764878780137,0.44300002,92013.0,92012.0,0.00090412]
[1764878780343,0.44300002,92013.0,92012.0,9.748e-05]
[1764878780741,0.0108656,92007.0,92006.0,0.00027172]
[1764878780943,0.09206562,92007.0,92006.0,0.00027172]
[1764878781447,0.089646,92004.0,92003.0,0.00016297]
[1764878781654,0.09206602,92004.0,92003.0,0.00016297]
[1764878781847,0.092147,92004.0,92003.0,0.00016297]
[1764878782243,0.03939,91988.0,91980.0,0.27395]
[1764878782451,0.00242002,91981.0,91980.0,0.3780188]
[1764878782652,0.00251442,91981.0,91980.0,0.3780188]
[1764878782853,9.44e-05,91981.0,91980.0,0.3780188]
[1764878783155,0.00251442,91981.0,91980.0,0.3780188]
[1764878783352,0.00251442,91981.0,91980.0,0.7388188]
[1764878783353,9.44e-05,91981.0,91980.0,0.7388188]
[1764878784548,9.44e-05,91981.0,91980.0,0.7418188]
[1764878784944,9.44e-05,91981.0,91980.0,0.7388188]
[1764878785151,9.44e-05,91981.0,91980.0,0.7458188]
[1764878785347,9.44e-05,91981.0,91980.0,0.7468188]
[1764878785548,0.00251442,91981.0,91980.0,0.7398188]
[1764878785754,0.00251442,91981.0,91980.0,0.7448188]
[1764878786054,9.44e-05,91981.0,91980.0,0.7438188]
[1764878786251,9.44e-05,91981.0,91980.0,0.7448188]
[1764878787255,9.44e-05,91981.0,91980.0,0.7398188]
[1764878787455,9.44e-05,91981.0,91980.0,0.7448188]
[1764878787655,0.00251442,91981.0,91980.0,0.7438188]
[1764878788858,0.00251442,91981.0,91980.0,0.7448188]
[1764878789356,0.08129442,91981.0,91980.0,0.32876]
[1764878789557,0.44209442,91981.0,91980.0,0.27995]
[1764878789765,0.44209442,91981.0,91980.0,0.006]
[1764878789766,0.45296312,91981.0,91980.0,0.006]
[1764878790651,0.07878,91976.0,91971.0,0.00016307]
[1764878790851,0.00242002,91972.0,91971.0,0.04977971]
[1764878791057,0.04181002,91972.0,91971.0,0.04977971]
[1764878791258,0.04181002,91972.0,91971.0,0.06064961]
[1764878791455,9.44e-05,91981.0,91980.0,0.1040688]
[1764878791663,4.4e-06,91981.0,91980.0,0.46567544]
[1764878791862,0.36096307,91990.0,91989.0,0.1040678]
[1764878792052,0.36096307,91990.0,91989.0,0.10487444]
[1764878793052,0.36096307,91990.0,91989.0,0.09400664]
[1764878793361,0.0503585,91983.0,91982.0,0.04881]
[1764878793663,0.0108682,91986.0,91985.0,0.04881]
[1764878793864,0.01328822,91986.0,91985.0,0.04881]
[1764878794053,0.01328822,91986.0,91983.0,0.0108685]
[1764878794054,0.36096307,91990.0,91989.0,0.0929578]
[1764878794255,0.00016307,91990.0,91989.0,0.09776444]
[1764878794653,0.00016307,91990.0,91989.0,0.09376444]
[1764878795159,0.00016307,91990.0,91989.0,0.45456444]
[1764878795361,0.2217986,92030.0,91989.0,0.45456444]
[1764878795362,0.0108653,92010.0,92009.0,0.08209]
[1764878796063,0.0646453,92010.0,92009.0,0.04238]
[1764878796264,0.0377559,92005.0,92004.0,0.08209]
[1764878796568,0.0377559,92005.0,92004.0,0.04238]
[1764878796569,0.42786592,92005.0,92004.0,0.04238]
[1764878797262,0.42786592,92005.0,92004.0,0.08209]
[1764878797463,0.41458,92005.0,92004.0,0.08709]
[1764878798157,0.41458,92005.0,92004.0,0.08509]
[1764878799757,0.41458,92005.0,92004.0,0.08209]
[1764878799956,0.41458,92005.0,92004.0,0.08609]
[1764878800352,0.3608,92005.0,92004.0,0.08609]
[1764878800556,0.3608,92014.0,92013.0,0.08209]
[1764878800757,0.38769,92014.0,92013.0,0.08289664]
[1764878801266,0.41458,92014.0,92013.0,0.08289664]
[1764878802466,0.41458,92014.0,92013.0,0.00080664]
[1764878802783,0.3608,92014.0,92013.0,0.08289664]
[1764878802961,0.3608,92014.0,92013.0,0.09547499]
[1764878803266,0.3608,92014.0,92013.0,0.08489664]
[1764878803470,0.3608,92014.0,92013.0,0.08289664]
[1764878803664,0.3608,92014.0,92013.0,0.08489664]
[1764878804064,0.3608,92014.0,92013.0,0.09384821]
[1764878804270,0.3608,92014.0,92013.0,0.09784821]
[1764878804661,0.40712,92014.0,92013.0,0.004]
[1764878805260,0.40712,92014.0,92013.0,0.04451]
[1764878805757,0.40712,92014.0,92013.0,0.004]
[1764878806160,0.04632,92004.0,92003.0,0.0108661]
[1764878806363,0.40712,92004.0,92003.0,0.0108661]
[1764878806878,0.417986,92004.0,92003.0,0.0108661]
[1764878807462,0.417986,92004.0,92003.0,0.0148661]
[1764878808167,0.04632,92004.0,92003.0,0.0148661]
[1764878808468,0.04632,92004.0,92003.0,0.0942061]
[1764878808469,0.02316,92004.0,92003.0,0.0942061]
[1764878808769,0.04632,92004.0,92003.0,0.0942061]
[1764878809369,0.04632,92004.0,92003.0,0.004]
[1764878811175,0.04632,92002.0,92001.0,0.0108662]
[1764878811359,0.04874002,92002.0,91997.0,0.3608]
[1764878811564,0.05960632,92001.0,92000.0,0.00096971]
[1764878811871,0.42040632,92001.0,92000.0,0.00016307]
[1764878812069,0.0571882,91985.0,91984.0,0.0108683]
[1764878812269,0.0571882,91985.0,91982.0,0.06501]
[1764878812270,0.04632,91983.0,91982.0,0.06501]
[1764878812571,0.04632,91983.0,91968.0,0.0902102]
[1764878812572,0.02316,91969.0,91968.0,0.0902102]
[1764878812869,0.04632,91969.0,91968.0,0.0902102]
[1764878813770,0.40712,91977.0,91976.0,0.0513793]
[1764878813970,0.40712,91977.0,91976.0,0.05218594]
[1764878814158,0.40712,91977.0,91976.0,0.04051]
[1764878814364,0.04632,91975.0,91974.0,0.0108694]
[1764878814864,0.04632,91969.0,91968.0,0.007]
[1764878815064,0.40954002,91969.0,91968.0,0.007]
[1764878815278,0.04632,91960.0,91955.0,0.3608]
[1764878815469,0.04632,91960.0,91935.0,0.07819204]
[1764878815470,0.0571919,91954.0,91940.0,0.0108735]
[1764878815664,0.0571937,91939.0,91931.0,0.0108745]
[1764878815866,0.04632,91931.0,91930.0,0.0513847]
[1764878816065,0.04632,91928.0,91927.0,0.0245]
[1764878816266,0.04874002,91928.0,91927.0,0.0245]
[1764878816566,0.3608,91936.0,91935.0,0.07934]
[1764878816766,0.36089287,91936.0,91935.0,0.08014664]
[1764878817567,0.38405287,91936.0,91935.0,0.07934]
[1764878817763,0.40721287,91936.0,91935.0,0.07934]
[1764878818076,0.0571946,91931.0,91930.0,0.007]
[1764878818273,0.05961462,91931.0,91930.0,0.007]
[1764878818574,0.0571951,91927.0,91926.0,0.00027196]
[1764878818767,0.42041512,91927.0,91926.0,0.00027196]
[1764878819774,0.42041512,91927.0,91926.0,0.00227196]
[1764878820677,0.42041512,91927.0,91908.0,0.0108773]
[1764878820678,0.0108773,91909.0,91908.0,0.07934]
[1764878820979,0.36089287,91909.0,91908.0,0.07934]
[1764878821279,0.40721287,91909.0,91908.0,0.07934]
[1764878821669,0.40721287,91909.0,91900.0,0.05]
[1764878821670,0.0571982,91901.0,91900.0,0.05]
[1764878821877,0.42041822,91901.0,91900.0,0.05]
[1764878822064,0.42041822,91901.0,91872.0,0.0245]
[1764878822065,0.0571998,91887.0,91872.0,0.0245]
[1764878822273,0.04632,91886.0,91872.0,0.0245]
[1764878822466,0.40954002,91886.0,91872.0,0.0245]
[1764878823179,0.42041992,91886.0,91882.0,0.0108804]
[1764878823375,0.42141992,91886.0,91875.0,0.0108812]
[1764878823875,0.42141992,91886.0,91872.0,0.0245]
[1764878824268,0.05138,91867.0,91861.0,0.0108828]
[1764878824469,0.41460002,91862.0,91861.0,0.0508328]
[1764878824673,0.41460002,91862.0,91861.0,0.0108828]
[1764878824871,0.00016326,91873.0,91868.0,0.02506]
[1764878825077,0.00016326,91873.0,91872.0,0.08077664]
[1764878825291,0.00016326,91873.0,91860.0,0.10447]
[1764878825292,0.05138,91861.0,91860.0,0.10447]
[1764878825583,0.36109097,91873.0,91872.0,0.07997]
[1764878826283,0.05138,91871.0,91870.0,0.0108818]
[1764878826472,0.05138,91867.0,91860.0,0.0255]
[1764878826671,0.37197257,91873.0,91860.0,0.0255]
[1764878826672,0.41218,91863.0,91862.0,0.0108828]
[1764878827270,0.05138,91859.0,91858.0,0.0108832]
[1764878827674,0.3608,91863.0,91862.0,0.0908528]
[1764878827876,0.3608,91863.0,91862.0,0.09165944]
[1764878828276,0.41218,91863.0,91862.0,0.0108828]
[1764878828475,0.41218,91863.0,91862.0,0.004]
[1764878828879,0.41218,91863.0,91862.0,0.005]
[1764878829275,0.41218,91863.0,91846.0,0.0002722]
[1764878829276,0.05138,91847.0,91846.0,0.0002722]
[1764878829474,0.05138,91824.0,91823.0,0.3716874]
[1764878829682,0.05138,91823.0,91793.0,0.05353129]
[1764878829984,0.05380002,91823.0,91822.0,0.00093636]
[1764878830479,0.00011643,91824.0,91823.0,0.0908574]
[1764878830684,0.00011643,91824.0,91823.0,0.09166404]
[1764878830888,0.00016336,91833.0,91832.0,0.0908563]
[1764878831184,0.00258338,91833.0,91832.0,0.09166294]
[1764878831388,0.00016336,91833.0,91832.0,0.09166294]
[1764878831579,0.05396338,91833.0,91832.0,0.01169294]
[1764878831882,0.38918656,91833.0,91828.0,0.0108868]
[1764878832080,0.02811002,91829.0,91828.0,0.0108868]
[1764878832285,0.05380002,91829.0,91828.0,0.0108868]
[1764878832676,0.05380002,91829.0,91828.0,0.0508368]
[1764878832983,0.05138,91824.0,91823.0,0.0108873]
[1764878833176,0.41218,91824.0,91823.0,0.0108873]
[1764878833682,0.05138,91832.0,91831.0,0.0108864]
[1764878833883,0.05138,91828.0,91827.0,0.0108869]
[1764878834081,0.05138,91823.0,91822.0,0.00012972]
[1764878834283,0.41460002,91823.0,91822.0,0.00012972]
[1764878835383,0.0622693,91807.0,91806.0,0.00027231]
[1764878835581,0.4230693,91807.0,91806.0,0.00027231]
[1764878835778,0.7838693,91807.0,91806.0,0.00027231]
[1764878835979,0.7838693,91807.0,91806.0,0.08104895]
[1764878835980,0.74729,91807.0,91806.0,0.08104895]
[1764878836175,0.7216,91807.0,91806.0,0.08104895]
[1764878836487,0.72171779,91807.0,91806.0,0.08104895]
[1764878836677,0.72571779,91807.0,91806.0,0.08104895]
[1764878837581,0.75140779,91807.0,91806.0,0.08024231]
[1764878837887,0.77709779,91807.0,91806.0,0.04022231]
[1764878838087,0.77709779,91807.0,91806.0,0.00027231]
[1764878839872,0.05138,91796.0,91791.0,0.0108912]
[1764878840177,0.05138,91796.0,91795.0,0.04075664]
[1764878840379,0.3608,91796.0,91795.0,0.0908607]
[1764878840682,0.00016336,91803.0,91802.0,0.0108899]
[1764878840883,0.00258338,91803.0,91802.0,0.05164654]
[1764878841091,0.02569,91799.0,91798.0,0.0108903]
[1764878841285,0.38891002,91799.0,91798.0,0.0108903]
[1764878841492,0.36322002,91799.0,91798.0,0.0908603]
[1764878842383,0.38891002,91799.0,91798.0,0.0908603]
[1764878842786,0.39091002,91799.0,91798.0,0.0908603]
[1764878843387,0.41660002,91799.0,91798.0,0.0908603]
[1764878843586,0.39091002,91799.0,91798.0,0.0908603]
[1764878843978,0.36522002,91799.0,91798.0,0.0908603]
[1764878844180,0.3628,91799.0,91798.0,0.0908603]
[1764878844385,0.002,91799.0,91798.0,0.0908603]
[1764878845985,0.02769,91799.0,91798.0,0.07997]
[1764878846186,0.05338,91799.0,91798.0,0.07997]
[1764878846385,0.05338,91799.0,91793.0,0.02506]
[1764878846386,0.002,91799.0,91793.0,0.0359509]
[1764878846588,0.0642702,91799.0,91798.0,0.00080664]
[1764878846794,0.0108908,91794.0,91793.0,0.1159209]
[1764878846993,0.01331082,91794.0,91793.0,0.1159209]
[1764878847389,0.01331082,91794.0,91793.0,0.10503]
[1764878847589,0.0108917,91787.0,91786.0,0.0908618]
[1764878848687,0.3608,91790.0,91779.0,0.3608]
[1764878848688,0.38649,91790.0,91789.0,0.0908614]
[1764878848884,0.38649,91790.0,91789.0,0.09166804]
[1764878849198,0.3608,91790.0,91789.0,0.09166804]
[1764878849394,0.38649,91790.0,91789.0,0.09166804]
[1764878849592,0.3608,91790.0,91789.0,0.09166804]
[1764878849788,0.4230713,91790.0,91789.0,0.03995]
[1764878850092,0.0622717,91787.0,91786.0,0.002]
[1764878850298,0.06469172,91787.0,91786.0,0.002]
[1764878850492,0.06469172,91787.0,91786.0,0.001]
[1764878850993,0.00242002,91787.0,91786.0,0.08177664]
[1764878851196,0.00242002,91787.0,91786.0,0.08077664]
[1764878851389,0.36091778,91790.0,91789.0,0.0908614]
[1764878851592,0.36091778,91790.0,91789.0,0.09166804]
[1764878852598,0.38660778,91790.0,91789.0,0.09166804]
[1764878852798,0.36091778,91790.0,91789.0,0.09166804]
[1764878853299,0.36091778,91790.0,91789.0,0.08077664]
[1764878853500,0.41229778,91790.0,91789.0,0.08097]
[1764878853699,0.41229778,91790.0,91789.0,0.001]
[1764878854904,0.02934,91770.0,91769.0,0.0527737]
[1764878855197,0.00013506,91770.0,91769.0,0.0879437]
[1764878855502,0.00016345,91779.0,91778.0,0.0879427]
[1764878855800,0.00016345,91779.0,91778.0,0.08874934]
[1764878856299,0.3618,91790.0,91789.0,0.0879414]
[1764878856496,0.001,91790.0,91789.0,0.0879414]
[1764878856797,0.3608,91805.0,91804.0,0.0879397]
[1764878857003,0.05873815,91817.0,91816.0,0.0879382]
[1764878857004,0.0108881,91817.0,91816.0,0.0879382]
[1764878857299,0.0108881,91817.0,91783.0,0.02895644]
[1764878857300,0.02992,91798.0,91783.0,0.02895644]
[1764878857494,0.37576,91789.0,91788.0,0.0879416]
[1764878857698,0.3608,91789.0,91788.0,0.0879416]
[1764878857892,0.0258502,91799.0,91798.0,0.04188]
[1764878858097,0.04323022,91799.0,91798.0,0.07705]
[1764878858398,0.01331022,91799.0,91798.0,0.07705]
[1764878858694,0.00242002,91799.0,91798.0,0.0879404]
[1764878859300,0.01738002,91799.0,91798.0,0.07705]
[1764878859500,0.00242002,91799.0,91798.0,0.07705]
[1764878859801,0.36096345,91800.0,91799.0,0.0879402]
[1764878859802,0.00016345,91800.0,91799.0,0.0879402]
[1764878860102,0.0108908,91795.0,91794.0,0.07705]
[1764878860802,0.003,91799.0,91798.0,0.0879404]
[1764878861108,0.00216345,91800.0,91799.0,0.07705]
[1764878861399,0.00216345,91800.0,91799.0,0.07785664]
[1764878861605,0.00016345,91800.0,91799.0,0.07785664]
[1764878862190,0.00216345,91800.0,91799.0,0.07785664]
[1764878863501,0.00216345,91800.0,91799.0,0.10681308]
[1764878863700,0.00216345,91800.0,91799.0,0.07785664]
[1764878866497,0.0387108,91794.0,91793.0,0.02166]
[1764878866701,0.40193082,91794.0,91793.0,0.02166]
[1764878867609,0.40193082,91794.0,91793.0,0.05614]
[1764878868009,0.40193082,91794.0,91793.0,0.09101]
[1764878869003,0.40193082,91794.0,91793.0,0.05614]
[1764878869203,0.40193082,91794.0,91793.0,0.02166]
[1764878869812,0.40193082,91794.0,91793.0,0.05614]
[1764878870002,0.40393082,91794.0,91793.0,0.09101]
[1764878872811,0.36522002,91794.0,91793.0,0.09101]
[1764878873009,0.002,91794.0,91793.0,0.09101]
[1764878873218,0.00016345,91800.0,91799.0,0.0802402]
[1764878873509,0.00016345,91800.0,91799.0,0.08104684]
[1764878874714,0.00216345,91800.0,91799.0,0.08104684]
[1764878878812,0.01607345,91800.0,91799.0,0.08104684]
[1764878879610,0.00216345,91800.0,91799.0,0.08104684]
[1764878880813,0.02998345,91800.0,91799.0,0.08104684]
[1764878881322,0.0108908,91794.0,91793.0,0.02166]
[1764878881518,0.04113082,91794.0,91793.0,0.02166]
[1764878881823,0.02782,91782.0,91773.0,0.05085644]
[1764878882028,0.38862,91782.0,91773.0,0.0219]
[1764878882519,0.3608,91782.0,91781.0,0.07032009]
[1764878883314,0.3618,91782.0,91781.0,0.07032009]
[1764878883519,0.3658,91782.0,91781.0,0.07032009]
[1764878883923,0.36096345,91800.0,91790.0,0.0812813]
[1764878884119,0.00016345,91800.0,91799.0,0.08208684]
[1764878884320,0.00258347,91800.0,91799.0,0.08208684]
[1764878884523,0.00016345,91800.0,91799.0,0.08208684]
[1764878884723,0.00258347,91800.0,91799.0,0.08208684]
[1764878884925,0.00016345,91800.0,91799.0,0.08208684]
[1764878885127,0.00258347,91800.0,91799.0,0.08208684]
[1764878885339,0.00016345,91800.0,91799.0,0.08208684]
[1764878885524,0.00258347,91800.0,91799.0,0.08208684]
[1764878885730,0.07536347,91800.0,91799.0,0.03589]
[1764878885932,0.07536347,91800.0,91792.0,0.02895644]
[1764878885933,0.0376,91788.0,91787.0,0.0108916]
[1764878886130,0.07278,91784.0,91783.0,0.03984854]
[1764878886431,0.07278,91784.0,91783.0,0.0467821]
[1764878886725,0.07278,91784.0,91783.0,0.0812821]
[1764878888334,0.0108917,91787.0,91786.0,0.03589]
[1764878888523,0.0836717,91787.0,91786.0,0.03589]
[1764878888921,0.083672,91784.0,91783.0,0.0108921]
[1764878889123,0.083672,91784.0,91783.0,0.03589]
[1764878889124,0.08609202,91784.0,91783.0,0.03589]
[1764878889331,0.07278,91782.0,91781.0,0.00016345]
[1764878889626,0.43600002,91782.0,91781.0,0.00016345]
[1764878889821,0.43600002,91782.0,91781.0,0.00097009]
[1764878890027,0.43600002,91782.0,91781.0,0.00016345]
[1764878890629,0.00242002,91782.0,91781.0,0.07136009]
[1764878891338,0.3716912,91791.0,91781.0,0.07136009]
[1764878891339,0.3716912,91791.0,91790.0,0.07039]
[1764878891536,0.3716912,91791.0,91790.0,0.07119664]
[1764878891830,0.3716912,91791.0,91790.0,0.07039]
[1764878892039,0.4444712,91791.0,91790.0,0.07039]
[1764878892233,0.0108918,91786.0,91785.0,0.0108919]
[1764878892536,0.0836723,91782.0,91781.0,0.00016345]
[1764878892739,0.44689232,91782.0,91781.0,0.00016345]
[1764878892934,0.44689232,91782.0,91781.0,0.03686009]
[1764878893129,0.44689232,91782.0,91781.0,0.00016345]
[1764878894337,0.083674,91767.0,91766.0,0.00027243]
[1764878894542,0.0108947,91762.0,91742.0,0.07039]
[1764878894836,0.0108947,91762.0,91730.0,0.05833047]
[1764878894837,0.0108962,91749.0,91748.0,0.07039]
[1764878895229,0.3984,91749.0,91748.0,0.07039]
[1764878895540,0.39850668,91749.0,91748.0,0.07039]
[1764878895735,0.40940288,91749.0,91748.0,0.07039]
[1764878895936,0.39850668,91749.0,91748.0,0.07039]
[1764878896545,0.36090668,91749.0,91748.0,0.07039]
[1764878896747,0.00010668,91749.0,91748.0,0.07039]
[1764878897042,0.00016345,91758.0,91757.0,0.0812852]
[1764878897242,0.3608,91767.0,91766.0,0.0812842]
[1764878897435,0.3608,91767.0,91766.0,0.08209084]
[1764878898640,0.3618,91767.0,91766.0,0.08209084]
[1764878900029,0.3658,91767.0,91766.0,0.08209084]
[1764878901741,0.4034,91767.0,91766.0,0.08209084]
[1764878901936,0.07278,91758.0,91757.0,0.00016345]
[1764878902130,0.43858,91767.0,91766.0,0.07039]
[1764878902343,0.449474,91767.0,91766.0,0.03589]
[1764878902535,0.07278,91765.0,91764.0,0.0108943]
[1764878902730,0.00242002,91765.0,91764.0,0.0812843]
[1764878903842,0.04002002,91765.0,91764.0,0.0812843]
[1764878904046,0.04002002,91765.0,91757.0,0.00016345]
[1764878904047,0.0386,91758.0,91757.0,0.04694865]
[1764878904345,0.0386,91758.0,91757.0,0.08225529]
[1764878904346,0.04102002,91758.0,91757.0,0.08225529]
[1764878905136,0.04002002,91758.0,91757.0,0.08225529]
[1764878905340,0.04202002,91758.0,91757.0,0.08225529]
[1764878905936,0.04202002,91758.0,91757.0,0.08149757]
[1764878906441,0.002,91758.0,91757.0,0.08149757]
[1764878906631,0.002,91758.0,91757.0,0.44229757]
[1764878906836,0.3608,91785.0,91764.0,0.0812844]
[1764878907045,0.3608,91785.0,91775.0,0.0812831]
[1764878907445,0.00258347,91776.0,91775.0,0.0812831]
[1764878907746,0.23533959,91800.0,91770.0,0.3608]
[1764878907747,0.05869226,91819.0,91818.0,0.081278]
[1764878907945,0.3608,91839.0,91811.0,0.0108888]
[1764878907946,0.05869226,91842.0,91832.0,0.09133]
[1764878908148,0.05869226,91846.0,91842.0,0.0108851]
[1764878908335,0.08675615,91853.0,91850.0,0.0108842]
[1764878908536,0.07520002,91851.0,91850.0,0.0108842]
[1764878908739,0.00016336,91860.0,91852.0,0.03589]
[1764878908938,0.04018338,91860.0,91859.0,0.01168974]
[1764878909244,0.04018338,91860.0,91859.0,0.00080664]
[1764878909445,0.07536338,91860.0,91859.0,0.00080664]
[1764878909638,0.04018338,91860.0,91859.0,0.00080664]
[1764878909835,0.00258338,91860.0,91859.0,0.43199664]
[1764878910147,0.00258338,91860.0,91859.0,0.07119664]
[1764878910346,0.00016336,91860.0,91859.0,0.07119664]
[1764878910546,0.00258338,91860.0,91859.0,0.07119664]
[1764878910748,0.04218338,91860.0,91859.0,0.00080664]
[1764878910943,0.07736338,91860.0,91859.0,0.00080664]
[1764878911144,0.01158338,91860.0,91859.0,0.00080664]
[1764878911344,0.08436338,91860.0,91859.0,0.00080664]
[1764878912148,0.07278,91850.0,91840.0,0.3608]
[1764878912345,0.07278,91850.0,91849.0,0.00080664]
[1764878913035,0.0108843,91849.0,91845.0,0.0108847]
[1764878913239,0.0108843,91849.0,91840.0,0.3608]
[1764878913240,0.07278,91842.0,91840.0,0.3608]
[1764878913441,0.07520002,91842.0,91841.0,0.00097]
[1764878913642,0.00242002,91842.0,91841.0,0.07136]
[1764878913843,0.03555,91850.0,91849.0,0.0108843]
[1764878914044,0.03355,91850.0,91849.0,0.01169094]
[1764878914244,0.03855,91850.0,91849.0,0.01169094]
[1764878914441,0.09534,91850.0,91849.0,0.0108843]